bitfinex-derivatives/quotes_SOLF0:USTF0_20241025
["timestamp","ask_amount","ask_price","bid_price","bid_amount"]
[1729895343916,12.28351964,166.13,166.08,4.78]
[1729895344421,6.1139,166.24,166.08,14.04871964]
[1729895344611,9.26871964,166.13,166.08,4.78]
[1729895345624,9.26871964,166.13,166.08,7.7955]
[1729895346224,9.26871964,166.12,166.08,4.78]
[1729895346528,9.26871964,166.11,166.08,4.78]
[1729895347128,3.0149,166.12,166.08,4.78]
[1729895347424,12.28361964,166.12,166.08,4.78]
[1729895347825,3.0149,166.12,166.08,4.78]
[1729895348425,3.015,166.11,166.08,4.78]
[1729895349041,3.0148,166.12,166.08,4.78]
[1729895349540,3.0158,166.07,166.02,3.0165]
[1729895349828,9.26871964,166.09,166.03,4.78]
[1729895350222,3.0155,166.08,166.03,7.7963]
[1729895350522,9.26871964,166.1,166.04,9.26871964]
[1729895350724,9.26871964,166.1,166.05,4.78]
[1729895351127,3.0155,166.08,166.05,4.78]
[1729895352129,9.26871964,166.12,166.06,9.26871964]
[1729895352515,12.28351964,166.12,166.06,9.26871964]
[1729895352722,9.26871964,166.12,166.06,9.26871964]
[1729895353129,3.0144,166.15,166.06,12.28451964]
[1729895353331,9.26871964,166.13,166.06,12.28451964]
[1729895353734,3.015,166.12,166.06,12.28451964]
[1729895354027,3.8816,166.18,166.08,3.0155]
[1729895354235,9.26871964,166.14,166.08,3.0155]
[1729895354734,3.0148,166.12,166.07,3.0155]
[1729895354935,9.26871964,166.08,166.01,4.78]
[1729895355132,9.26871964,166.08,166.01,14.04871964]
[1729895355532,3.8816,166.18,165.99,3.8217]
[1729895355737,9.26871964,166.08,166.0,4.78]
[1729895356038,6.86003893,166.18,165.99,3.8217]
[1729895356236,14.48552805,166.06,165.98,58.54]
[1729895356444,4.98,166.13,165.99,4.98]
[1729895356736,14.48552805,166.06,165.99,4.98]
[1729895358142,3.0168,166.02,165.99,4.98]
[1729895359039,3.0164,166.03,165.99,4.98]
[1729895359944,4.98,166.13,165.99,4.98]
[1729895360145,3.0163,166.04,165.99,4.98]
[1729895360361,14.48552805,166.06,165.98,58.54]
[1729895360540,14.48552805,166.06,165.99,4.98]
[1729895360738,3.0165,166.03,165.99,4.98]
[1729895360934,14.48552805,166.01,165.94,3.018]
[1729895361140,14.48552805,166.01,165.93,4.98]
[1729895361341,14.48552805,166.01,165.92,1.2183]
[1729895361342,14.48552805,165.99,165.92,1.2183]
[1729895361544,14.48552805,165.99,165.93,4.98]
[1729895363137,14.48552805,165.99,165.9,1.2757]
[1729895363343,14.48552805,165.99,165.91,4.98]
[1729895363544,14.48552805,165.99,165.92,4.98]
[1729895363945,3.0178,165.96,165.92,4.98]
[1729895364543,3.0175,165.97,165.92,4.98]
[1729895364945,14.48552805,165.99,165.92,4.98]
[1729895365149,3.0175,165.97,165.92,4.98]
[1729895365445,14.48552805,166.0,165.92,4.98]
[1729895365654,3.0177,165.96,165.92,4.98]
[1729895366556,3.0175,165.98,165.92,7.9983]
[1729895366746,3.0175,165.98,165.92,3.0183]
[1729895367050,17.50252805,166.0,165.94,3.0179]
[1729895367247,14.48552805,166.02,165.93,5.0]
[1729895367452,14.48552805,166.04,165.94,14.48552805]
[1729895367647,3.0168,166.02,165.96,3.0176]
[1729895368049,14.48552805,166.04,165.94,14.48552805]
[1729895368254,3.0164,166.03,165.97,3.0173]
[1729895368451,3.0164,166.03,165.98,5.0]
[1729895369158,14.48552805,166.04,165.98,5.0]
[1729895370156,3.0164,166.03,165.99,3.0171]
[1729895370352,3.0164,166.03,165.98,5.0]
[1729895370854,18.80782805,166.05,165.98,5.0]
[1729895371749,3.0169,166.01,165.84,64.6197]
[1729895371950,3.0169,166.01,165.91,14.48552805]
[1729895372159,17.50242805,166.01,165.92,7.5196]
[1729895372461,17.50242805,166.01,165.95,3.0177]
[1729895373057,17.50242805,166.01,165.96,5.0]
[1729895373260,3.0171,166.0,165.96,5.0]
[1729895373455,14.48552805,166.0,165.96,5.0]
[1729895374657,3.0172,165.99,165.96,5.0]
[1729895376154,3.0172,165.99,165.97,5.0]
[1729895377163,3.017,166.0,165.97,5.0]
[1729895377548,14.48552805,166.03,165.97,5.0]
[1729895377855,3.0167,166.02,165.97,8.0174]
[1729895378052,14.48552805,166.03,165.97,8.0174]
[1729895378256,14.48552805,166.03,165.97,5.0]
[1729895378464,17.50212805,166.03,165.99,3.0171]
[1729895378754,15.79162805,166.05,165.97,5.0]
[1729895379069,15.79162805,166.05,166.0,3.0169]
[1729895379070,3.0163,166.04,166.0,3.0169]
[1729895380248,1.3061,166.05,165.97,5.0]
[1729895380461,14.48552805,166.06,165.97,19.48552805]
[1729895380647,17.50142805,166.06,166.02,3.0165]
[1729895380848,14.48552805,166.06,166.03,5.0]
[1729895381049,14.48552805,166.05,166.03,5.0]
[1729895381354,3.0159,166.06,166.03,5.0]
[1729895381556,14.48552805,166.06,166.03,5.0]
[1729895381961,3.0161,166.05,166.03,5.0]
[1729895392263,9.26960165,166.04,166.03,5.0]
[1729895392464,14.07960165,166.04,166.03,5.0]
[1729895392657,4.81,166.04,166.03,5.0]
[1729895392857,14.07960165,166.04,166.03,5.0]
[1729895394963,4.81,166.04,166.03,5.0]
[1729895395266,14.07960165,166.04,166.03,5.0]
[1729895397360,4.81,166.04,166.03,5.0]
[1729895399269,7.8262,166.04,166.03,5.0]
[1729895400262,4.81,166.04,166.03,8.0164]
[1729895400765,4.81,166.04,166.03,17.28600165]
[1729895401375,2.6795,166.04,166.03,17.28600165]
[1729895401579,3.9266,166.15,166.03,14.26960165]
[1729895401875,9.26960165,166.14,166.08,9.26960165]
[1729895402164,9.26960165,166.14,166.09,8.0753]
[1729895402569,12.28400165,166.14,166.09,8.0753]
[1729895402774,6.0244,166.27,166.11,12.28460165]
[1729895403068,9.26960165,166.18,166.11,9.26960165]
[1729895403269,9.26960165,166.18,166.09,5.06]
[1729895403270,2.5325,166.26,166.15,3.0141]
[1729895403486,3.0132,166.21,166.16,14.32960165]
[1729895403668,3.0132,166.21,166.17,5.06]
[1729895404064,9.26960165,166.22,166.17,5.06]
[1729895404272,3.0131,166.22,166.17,5.06]
[1729895404571,15.70761093,166.25,166.18,5.06]
[1729895404767,17.48371093,166.2,166.19,5.06]
[1729895404974,14.47041093,166.2,166.18,5.06]
[1729895405366,3.0132,166.21,166.18,5.06]
[1729895405569,14.47041093,166.24,166.18,5.06]
[1729895405770,3.013,166.22,166.18,5.06]
[1729895405963,1.2372,166.25,166.18,5.06]
[1729895406165,15.70761093,166.25,166.18,5.06]
[1729895406870,1.2372,166.25,166.18,5.06]
[1729895407068,3.0128,166.24,166.18,5.06]
[1729895407375,1.2372,166.25,166.18,5.06]
[1729895407573,4.2498,166.25,166.2,3.0132]
[1729895407964,4.2498,166.25,166.21,6.93228671]
[1729895408281,3.0122,166.27,166.22,7.28800737]
[1729895408469,3.0122,166.27,166.23,12.34800737]
[1729895408781,3.0122,166.27,166.24,11.99228671]
[1729895408966,2.5288,166.33,166.25,6.93228671]
[1729895409274,2.5288,166.33,166.28,0.35572066]
[1729895409472,2.5288,166.33,166.29,11.99228671]
[1729895409774,3.0108,166.34,166.3,9.94378671]
[1729895409978,3.0108,166.34,166.31,6.93228671]
[1729895410167,3.0106,166.35,166.32,6.93228671]
[1729895410477,14.47041093,166.38,166.33,6.93228671]
[1729895410675,14.47041093,166.38,166.34,12.34800737]
[1729895410875,14.47041093,166.38,166.35,11.99228671]
[1729895411070,14.47041093,166.38,166.36,6.93228671]
[1729895411270,14.47041093,166.38,166.37,6.93228671]
[1729895411670,2.6455,166.39,166.37,6.93228671]
[1729895411976,2.6455,166.39,166.38,6.93228671]
[1729895412180,5.6554,166.39,166.38,6.93228671]
[1729895412373,5.6554,166.39,166.38,7.28800737]
[1729895413270,14.47041093,166.4,166.38,6.93228671]
[1729895413578,14.47041093,166.4,166.39,6.93228671]
[1729895413969,3.01,166.39,166.35,5.06]
[1729895414199,3.01,166.39,166.37,0.35381044]
[1729895414373,3.01,166.39,166.36,4.51737963]
[1729895414572,3.01,166.39,166.38,3.01158642]
[1729895414880,3.01,166.39,166.38,7.2803961]
[1729895415378,3.01,166.39,166.38,6.92661036]
[1729895417169,3.0097,166.41,166.38,6.92661036]
[1729895417476,3.03313433,166.5,166.37,3.0102]
[1729895417477,15.81231093,166.44,166.37,3.0102]
[1729895417671,15.81231093,166.44,166.35,19.53041093]
[1729895417672,15.81231093,166.44,166.42,0.35236268]
[1729895417871,4.3509,166.44,166.43,7.2782329]
[1729895418580,14.47041093,166.46,166.43,7.2782329]
[1729895418781,3.0086,166.47,166.44,6.92587022]
[1729895418970,3.0086,166.47,166.46,0.35192177]
[1729895419280,3.0086,166.47,166.46,12.27779199]
[1729895419979,3.0085,166.47,166.46,11.92587022]
[1729895421183,3.0085,166.47,166.46,12.27675179]
[1729895422280,3.0079,166.51,166.46,5.0]
[1729895422583,14.47041093,166.56,166.46,5.0]
[1729895422782,1.3321,166.55,166.46,5.0]
[1729895423074,1.3321,166.55,166.47,3.0084]
[1729895423380,14.47041093,166.53,166.46,5.0]
[1729895423584,3.0077,166.51,166.46,5.0]
[1729895423784,14.47041093,166.53,166.46,5.0]
[1729895424176,3.008,166.5,166.46,5.0]
[1729895424571,3.008,166.5,166.46,8.0085]
[1729895424776,1.3321,166.55,166.46,5.0]
[1729895424976,3.0078,166.51,166.46,5.0]
[1729895425371,3.0078,166.51,166.47,1.50484327]
[1729895425575,3.0078,166.51,166.46,5.0]
[1729895425771,3.0078,166.51,166.47,1.50485879]
[1729895425984,3.0078,166.51,166.46,5.0]
[1729895426281,3.0078,166.51,166.47,3.0083]
[1729895426782,3.008,166.5,166.46,5.0]
[1729895426983,3.008,166.5,166.46,8.0085]
[1729895428382,4.8,166.49,166.46,8.0085]
[1729895428885,14.47041093,166.59,166.47,14.47041093]
[1729895429078,14.47041093,166.56,166.48,5.0]
[1729895429279,14.47041093,166.56,166.49,5.0]
[1729895429586,3.0079,166.51,166.49,5.0]
[1729895429786,14.47041093,166.56,166.49,5.0]
[1729895430484,3.0079,166.5,166.49,5.0]
[1729895431981,3.0078,166.51,166.49,5.0]
[1729895434293,14.47041093,166.54,166.42,14.47041093]
[1729895434585,14.47041093,166.52,166.43,5.0]
[1729895434778,2.5557,166.53,166.43,5.0]
[1729895434981,3.009,166.44,166.43,5.0]
[1729895436788,3.009,166.44,166.41,3.0095]
[1729895436992,3.009,166.44,166.42,5.0]
[1729895437893,14.47041093,166.5,166.42,5.0]
[1729895438089,3.0084,166.48,166.42,19.47041093]
[1729895439493,3.0084,166.48,166.44,3.0089]
[1729895441191,17.02611093,166.53,166.44,3.0089]
[1729895441493,14.47041093,166.51,166.44,3.0089]
[1729895442089,2.5557,166.53,166.42,5.0]
[1729895442292,17.02611093,166.53,166.42,5.0]
[1729895442690,3.0082,166.49,166.45,3.0087]
[1729895443293,17.02611093,166.53,166.45,3.0087]
[1729895443493,17.02611093,166.53,166.42,5.0]
[1729895443695,17.02611093,166.53,166.45,3.0088]
[1729895444205,3.0082,166.49,166.45,3.0088]
[1729895444698,3.0082,166.49,166.42,5.0]
[1729895444900,3.0082,166.49,166.45,3.0087]
[1729895448502,3.008,166.5,166.45,14.47041093]
[1729895448711,14.47041093,166.56,166.45,14.47041093]
[1729895449099,3.0077,166.52,166.48,3.0082]
[1729895449406,14.47041093,166.56,166.49,4.92]
[1729895449704,3.0075,166.53,166.5,4.92]
[1729895450296,1.2929,166.57,166.5,4.92]
[1729895450498,2.4532,166.58,166.5,4.92]
[1729895451007,3.0074,166.54,166.5,7.9279]
[1729895451196,2.4532,166.58,166.5,7.9279]
[1729895451397,2.4532,166.58,166.5,4.92]
[1729895451593,2.4532,166.58,166.5,7.9279]
[1729895452306,2.4532,166.58,166.51,3.0077]
[1729895453307,3.0072,166.54,166.51,3.0077]
[1729895454394,2.4532,166.58,166.5,4.92]
[1729895454598,3.0071,166.55,166.52,3.0074]
[1729895454994,3.0074,166.54,166.5,4.92]
[1729895455304,3.0074,166.54,166.5,19.39041093]
[1729895455503,3.0074,166.54,166.51,3.0076]
[1729895457502,14.47041093,166.56,166.46,14.47041093]
[1729895457802,14.47041093,166.56,166.47,4.92]
[1729895458001,14.47041093,166.54,166.43,17.06361093]
[1729895458308,14.47041093,166.54,166.44,4.92]
[1729895458806,14.47041093,166.54,166.45,4.92]
[1729895459002,3.0077,166.52,166.45,7.9288]
[1729895459199,14.47041093,166.54,166.45,7.9288]
[1729895459603,3.0077,166.52,166.45,3.0088]
[1729895459803,14.47041093,166.54,166.46,4.92]
[1729895460306,3.0082,166.49,166.46,4.92]
[1729895460507,14.47041093,166.54,166.46,4.92]
[1729895461411,14.47041093,166.54,166.46,7.9286]
[1729895462006,3.0081,166.49,166.46,7.9286]
[1729895463910,3.0075,166.53,166.49,3.008]
[1729895464109,3.0075,166.53,166.47,14.47041093]
[1729895465098,3.0076,166.52,166.49,3.008]
[1729895467900,14.47041093,166.57,166.47,14.47041093]
[1729895468105,3.0085,166.47,166.44,3.009]
[1729895468304,3.0085,166.47,166.45,4.92]
[1729895469116,1.2165,166.54,166.45,7.9287]
[1729895470001,3.0083,166.49,166.45,7.9287]
[1729895470206,1.2165,166.54,166.45,7.9287]
[1729895470402,14.47041093,166.52,166.43,17.47961093]
[1729895470606,3.0085,166.47,166.46,4.92]
[1729895471713,3.0091,166.44,166.41,17.47991093]
[1729895471916,14.47041093,166.5,166.42,4.92]
[1729895472706,14.47041093,166.48,166.41,4.92]
[1729895472918,14.47041093,166.46,166.35,58.52]
[1729895473131,14.47041093,166.43,166.36,4.92]
[1729895473312,1.2832,166.42,166.36,4.92]
[1729895474520,3.0101,166.39,166.36,4.92]
[1729895476516,1.2832,166.42,166.36,4.92]
[1729895476816,3.0101,166.38,166.36,4.92]
[1729895477215,3.0105,166.36,166.35,63.44]
[1729895477414,1.2832,166.42,166.35,4.92]
[1729895477415,2.5977,166.42,166.35,4.92]
[1729895477614,2.5977,166.42,166.36,14.47041093]
[1729895477818,1.2525,166.46,166.38,14.47041093]
[1729895478213,1.2525,166.46,166.4,14.47041093]
[1729895478414,1.2525,166.46,166.41,4.82]
[1729895478811,3.0082,166.49,166.45,17.47921093]
[1729895479016,17.08711093,166.56,166.46,4.82]
[1729895479217,0.91301611,166.55,166.46,4.82]
[1729895479813,17.08711093,166.56,166.46,4.82]
[1729895480943,3.0083,166.49,166.46,4.82]
[1729895481544,17.08711093,166.56,166.46,4.82]
[1729895482050,2.6167,166.56,166.47,14.47041093]
[1729895482288,3.0078,166.51,166.47,17.47881093]
[1729895482643,1.3022,166.56,166.47,14.47041093]
[1729895483158,1.3022,166.56,166.49,14.47041093]
[1729895483552,3.0073,166.54,166.5,3.0078]
[1729895483751,3.0073,166.54,166.51,4.82]
[1729895484860,1.3022,166.56,166.51,4.82]
[1729895485058,3.0074,166.53,166.51,4.82]
[1729895486872,1.2525,166.58,166.51,19.29041093]
[1729895487065,1.2642,166.59,166.51,19.29041093]
[1729895487467,3.007,166.56,166.52,3.0075]
[1729895487762,1.2642,166.59,166.53,14.47041093]
[1729895488171,3.0063,166.6,166.54,3.0072]
[1729895488372,15.73231093,166.62,166.54,3.0072]
[1729895489163,15.73231093,166.62,166.53,14.47041093]
[1729895489461,15.73231093,166.62,166.51,19.29041093]
[1729895489663,14.47041093,166.6,166.51,19.29041093]
[1729895489888,14.47041093,166.6,166.51,22.29811093]
[1729895489889,3.0072,166.55,166.51,22.29811093]
[1729895493760,3.0072,166.54,166.51,22.29811093]
[1729895495360,14.47041093,166.6,166.51,22.29811093]
[1729895495361,3.0072,166.55,166.51,22.29811093]
[1729895495860,14.47041093,166.6,166.51,4.82]
[1729895496556,3.0073,166.54,166.51,4.82]
[1729895498545,14.47041093,166.57,166.51,4.82]
[1729895498746,3.0076,166.52,166.51,4.82]
[1729895499850,3.0076,166.52,166.5,4.82]
[1729895500049,1.3131,166.55,166.5,4.82]
[1729895500251,3.0078,166.51,166.5,4.82]
[1729895500649,1.3131,166.55,166.5,4.82]
[1729895500849,3.0078,166.51,166.5,4.82]
[1729895501843,3.0078,166.51,166.48,3.0083]
[1729895502045,3.0078,166.51,166.49,4.82]
[1729895504558,3.0079,166.5,166.49,4.82]
[1729895504943,15.78351093,166.55,166.49,4.82]
[1729895507344,3.0078,166.51,166.49,4.82]
[1729895509149,14.47041093,166.53,166.44,14.47041093]
[1729895509356,3.0086,166.47,166.45,6.2045128]
[1729895509548,3.0086,166.47,166.46,1.5045128]
[1729895509755,3.0083,166.48,166.46,1.5045128]
[1729895509953,3.0083,166.48,166.45,7.7088]
[1729895510256,14.47041093,166.53,166.46,1.50454055]
[1729895510558,1.3131,166.55,166.45,4.7]
[1729895510862,1.3131,166.55,166.46,1.50453223]
[1729895511159,1.3131,166.55,166.45,4.7]
[1729895511358,14.47041093,166.53,166.46,1.50454444]
[1729895511554,14.47041093,166.53,166.45,4.7]
[1729895511753,14.47041093,166.53,166.46,1.50453851]
[1729895511956,14.47041093,166.53,166.45,4.7]
[1729895512156,14.47041093,166.53,166.46,1.50453851]
[1729895512348,14.47041093,166.53,166.45,7.7087]
[1729895512547,3.0082,166.49,166.46,1.50454555]
[1729895512750,3.0082,166.49,166.45,7.7087]
[1729895512960,3.0082,166.49,166.46,1.50454511]
[1729895513155,3.0082,166.49,166.45,7.7087]
[1729895513356,3.0082,166.49,166.46,1.50454534]
[1729895513558,3.0082,166.49,166.45,7.7087]
[1729895513869,3.0082,166.49,166.46,3.0086]
[1729895518258,3.0082,166.49,166.46,12.24948823]
[1729895529575,1.3131,166.55,166.45,4.7]
[1729895529576,3.0086,166.47,166.45,4.7]
[1729895529870,3.0086,166.47,166.44,3.009]
[1729895529871,9.24088823,166.5,166.42,2.5086]
[1729895530066,9.24088823,166.48,166.43,15.44551459]
[1729895530273,9.24088823,166.48,166.43,13.94088823]
[1729895530465,9.24088823,166.47,166.44,4.7]
[1729895530862,3.0088,166.45,166.44,4.7]
[1729895534171,4.7,166.53,166.44,4.7]
[1729895534374,3.0088,166.45,166.44,4.7]
[1729895538384,3.0088,166.45,166.43,9.24088823]
[1729895538584,3.0081,166.49,166.44,16.82978823]
[1729895538772,9.24088823,166.51,166.44,16.82978823]
[1729895539486,3.0087,166.46,166.44,16.82978823]
[1729895540078,3.0085,166.47,166.44,16.82978823]
[1729895540278,3.0085,166.47,166.46,9.24088823]
[1729895540678,9.24088823,166.51,166.46,9.24088823]
[1729895541383,9.24088823,166.51,166.46,12.24938823]
[1729895543179,9.24088823,166.51,166.46,9.24088823]
[1729895543378,3.0083,166.48,166.46,9.24088823]
[1729895543582,9.24088823,166.5,166.44,13.82088823]
[1729895545282,3.0087,166.46,166.44,9.24088823]
[1729895545482,9.24088823,166.47,166.45,4.58]
[1729895545683,9.24088823,166.47,166.44,4.58]
[1729895546478,3.0088,166.45,166.44,4.58]
[1729895546681,12.24968823,166.45,166.44,4.58]
[1729895547280,9.24088823,166.45,166.36,2.5265]
[1729895547583,6.0149,166.53,166.43,9.24088823]
[1729895547790,9.24088823,166.5,166.44,4.58]
[1729895548000,9.24088823,166.5,166.44,13.82088823]
[1729895548203,9.24088823,166.51,166.44,13.82088823]
[1729895548808,3.0085,166.47,166.44,16.82978823]
[1729895549307,3.0085,166.47,166.44,13.82088823]
[1729895549900,9.24088823,166.49,166.44,13.82088823]
[1729895550203,3.0087,166.46,166.44,4.58]
[1729895551401,5.8931,166.55,166.44,13.82088823]
[1729895551602,5.8931,166.55,166.44,16.82988823]
[1729895551603,3.0085,166.47,166.44,16.82988823]
[1729895554208,3.0085,166.47,166.46,9.24088823]
[1729895555811,9.24088823,166.51,166.46,9.24088823]
[1729895556703,3.008,166.5,166.46,9.24088823]
[1729895556899,9.24088823,166.51,166.45,9.24088823]
[1729895557603,3.0084,166.48,166.45,12.24968823]
[1729895559004,9.24088823,166.53,166.46,9.24088823]
[1729895559314,3.0081,166.49,166.48,9.24088823]
[1729895559512,3.0081,166.49,166.48,13.82088823]
[1729895559725,3.008,166.5,166.48,13.82088823]
[1729895560212,9.24088823,166.53,166.48,13.82088823]
[1729895560512,3.0079,166.51,166.48,16.82918823]
[1729895562907,1.3131,166.55,166.48,13.82088823]
[1729895562908,3.008,166.5,166.48,13.82088823]
[1729895563918,3.0081,166.49,166.48,4.58]
[1729895570718,1.3015,166.56,166.48,13.82088823]
[1729895570924,9.24088823,166.56,166.51,9.24088823]
[1729895571120,9.24088823,166.56,166.52,4.52]
[1729895571315,3.0071,166.55,166.52,4.52]
[1729895571520,9.24088823,166.56,166.52,4.52]
[1729895571928,3.0072,166.55,166.52,4.52]
[1729895572526,3.0073,166.54,166.52,4.52]
[1729895572722,9.24088823,166.58,166.53,9.24088823]
[1729895573726,3.0071,166.55,166.53,9.24088823]
[1729895574830,3.0071,166.55,166.52,7.5276]
[1729895575648,3.0071,166.55,166.52,4.52]
[1729895576217,9.24088823,166.55,166.52,4.52]
[1729895576423,9.24088823,166.54,166.52,4.52]
[1729895577129,3.0074,166.53,166.52,4.52]
[1729895581133,9.24088823,166.53,166.52,4.5]
[1729895581427,12.24828823,166.53,166.52,4.5]
[1729895583436,3.0074,166.53,166.52,4.5]
[1729895583936,3.0077,166.52,166.49,3.008]
[1729895584235,3.0077,166.52,166.5,4.5]
[1729895586224,3.0077,166.52,166.5,13.74088823]
[1729895586628,3.0075,166.53,166.5,16.74878823]
[1729895587033,9.24088823,166.56,166.5,13.74088823]
[1729895587838,9.24088823,166.53,166.5,4.5]
[1729895588635,9.24088823,166.54,166.51,4.5]
[1729895589034,9.24088823,166.52,166.45,3.0088]
[1729895589343,3.0086,166.47,166.46,6.00460948]
[1729895590630,3.0086,166.47,166.46,4.5]
[1729895590841,3.0086,166.47,166.46,6.00462056]
[1729895594146,3.0086,166.47,166.46,1.50462056]
[1729895594343,3.0086,166.47,166.4,2.5906]
[1729895594344,9.24088823,166.47,166.41,9.24088823]
[1729895594560,1.2736,166.52,166.42,4.5]
[1729895594561,9.24088823,166.45,166.42,4.5]
[1729895594740,9.24088823,166.45,166.39,12.25068823]
[1729895594946,9.24088823,166.45,166.4,6.00489984]
[1729895595146,3.0093,166.43,166.41,1.50489984]
[1729895595346,3.0093,166.43,166.42,1.50489984]
[1729895598743,9.24088823,166.45,166.42,1.50489984]
[1729895598945,1.2736,166.52,166.4,4.5]
[1729895599144,9.24088823,166.49,166.43,9.24088823]
[1729895599341,9.24088823,166.49,166.45,9.24088823]
[1729895599846,3.0086,166.47,166.45,9.24088823]
[1729895600351,9.24088823,166.49,166.45,9.24088823]
[1729895600551,9.24088823,166.49,166.44,13.70088823]
[1729895601348,3.0087,166.46,166.44,13.70088823]
[1729895604249,3.0087,166.46,166.44,4.46]
[1729895606551,3.0092,166.44,166.43,4.46]
[1729895606856,9.24088823,166.45,166.42,4.46]
[1729895607445,3.0092,166.43,166.42,4.46]
[1729895619061,9.24088823,166.47,166.42,4.46]
[1729895619262,3.0091,166.44,166.42,13.70088823]
[1729895619455,9.24088823,166.47,166.42,4.46]
[1729895620767,3.009,166.45,166.42,7.4694]
[1729895621561,3.009,166.45,166.43,9.24088823]
[1729895621764,9.24088823,166.51,166.45,3.0088]
[1729895621963,1.2736,166.52,166.49,9.24088823]
[1729895622265,1.252,166.53,166.49,9.24088823]
[1729895622655,9.24088823,166.54,166.5,4.46]
[1729895622859,3.0075,166.53,166.5,4.46]
[1729895623158,9.24088823,166.54,166.5,4.46]
[1729895624266,3.0076,166.52,166.5,4.46]
[1729895624567,3.0076,166.52,166.5,13.70088823]
[1729895629366,3.0074,166.53,166.5,16.70878823]
[1729895630666,3.0074,166.53,166.52,9.24088823]
[1729895631270,3.0074,166.53,166.51,9.24088823]
[1729895634767,3.0083,166.49,166.45,3.0088]
[1729895634973,3.0083,166.49,166.46,4.4]
[1729895635172,9.24088823,166.51,166.46,4.4]
[1729895635375,3.0086,166.47,166.45,9.24088823]
[1729895635569,9.24088823,166.49,166.44,1.3385]
[1729895635762,9.24088823,166.49,166.45,4.4]
[1729895635967,3.0086,166.47,166.45,4.4]
[1729895636473,3.0086,166.47,166.46,4.4]
[1729895637063,9.24088823,166.48,166.42,9.24088823]
[1729895637270,3.009,166.45,166.43,5.90483255]
[1729895637470,3.009,166.45,166.43,4.4]
[1729895638663,3.0087,166.46,166.43,4.4]
[1729895640675,3.0087,166.46,166.44,9.24088823]
[1729895640877,3.0087,166.46,166.43,4.4]
[1729895641973,3.0087,166.46,166.43,7.4092]
[1729895642371,3.0087,166.46,166.43,16.65008823]
[1729895642775,3.0087,166.46,166.43,7.4092]
[1729895643575,3.0087,166.46,166.44,4.42]
[1729895644081,3.0083,166.48,166.45,12.24968823]
[1729895646383,3.0084,166.48,166.45,12.24968823]
[1729895651882,3.0084,166.48,166.45,9.24088823]
[1729895653880,9.24088823,166.48,166.44,4.42]
[1729895654086,9.24088823,166.48,166.4,2.5763]
[1729895654087,9.24088823,166.45,166.43,4.42]
[1729895654286,9.24088823,166.44,166.43,4.42]
[1729895654487,9.24088823,166.44,166.43,5.92490932]
[1729895654688,9.24088823,166.44,166.43,4.42]
[1729895655293,12.24998823,166.44,166.43,4.42]
[1729895655490,3.0091,166.44,166.43,4.42]
[1729895655692,9.24088823,166.45,166.4,12.25068823]
[1729895655894,9.24088823,166.45,166.41,5.92494842]
[1729895656094,9.24088823,166.45,166.42,1.50494842]
[1729895656288,9.24088823,166.45,166.41,4.42]
[1729895656490,3.7901,166.51,166.42,1.50494183]
[1729895656691,9.24088823,166.45,166.41,4.42]
[1729895657098,3.0091,166.44,166.42,1.50494161]
[1729895657405,9.24088823,166.45,166.41,7.4296]
[1729895657594,3.0091,166.44,166.42,1.50494549]
[1729895657902,9.24088823,166.45,166.43,1.50494549]
[1729895658102,9.24088823,166.45,166.41,4.42]
[1729895658103,3.0092,166.44,166.41,4.42]
[1729895658299,3.0092,166.44,166.42,1.50493823]
[1729895658506,3.0092,166.44,166.41,4.42]
[1729895658705,3.0092,166.44,166.42,1.5049482]
[1729895658900,3.0092,166.44,166.41,7.4296]
[1729895659103,3.0092,166.44,166.42,1.50494116]